Cogmind - Beta 17 @@@ ROGUE MODE // 2026.07.20 @ 22:09:12 Player: Arttano Result: Destroyed by Y-45 Defender with Heavy Assault Rifle Performance ------------- Evolutions (1) 500 Regions Visited (3) 600 Robots Destroyed (35) 175 Value Destroyed (815) 815 Prototype IDs (4) 80 Alien Tech Used (0) 0 Bonus (0) 0 TOTAL SCORE: 2170 Bonus ------- None Cogmind --------- Core Integrity 0/400 Matter 300/300 Energy 99/100 System Corruption 2% Temperature Cool (9) Movement Rolling (130) Ox2 Location -9/Materials Parts ------- > --- POWER (1) -------- (None) > --- PROPULSION (2) --- Light Treads Compact Wheel > --- UTILITY (4) ------ Heat Sink High-capacity Storage Unit > --- WEAPON (2) ------- Beam Rifle Light Assault Rifle > --- INVENTORY (20) --- Light Ion Engine Light Ion Engine Improved Ion Engine Improved Ion Engine Light Nuclear Core Aluminum Leg Aluminum Leg Flight Unit Flight Unit Improved VTOL Module Improved VTOL Module Improved VTOL Module Small Storage Unit Light Assault Rifle EMP Blaster EMP Blaster Peak State ------------ > --- POWER ------------ Improved Ion Engine > --- PROPULSION ------- Compact Wheel Improved VTOL Module > --- UTILITY ---------- Heat Sink High-capacity Storage Unit > --- WEAPON ----------- Improved Medium Laser Heavy Assault Rifle > --- INVENTORY -------- Light Ion Engine Light Ion Engine Improved Ion Engine Improved Ion Engine Light Nuclear Core Light Treads Light Treads Aluminum Leg Aluminum Leg Flight Unit Flight Unit Improved Flight Unit Improved VTOL Module Small Storage Unit Beam Rifle Light Assault Rifle EMP Blaster [Rating: 16] Favorites ----------- Power Ion Engine Engine Ion Engine Propulsion Light Treads Treads Light Treads Leg Aluminum Leg Wheel Compact Wheel Flight Unit Improved VTOL Module Utility High-capacity Storage Unit Device Seismic Detector Storage High-capacity Storage Unit Protection Light Armor Plating Weapon Improved Medium Laser Energy Gun Improved Medium Laser Ballistic Gun Light Assault Rifle Build | -11 -10 -10 -9 ------- Run | Yrd Mat Min Mat Slots Evolved 2 | . . . 2 Power . | . . . . Propulsion . | . . . . Utility 2 | . . . 2 Weapon . | . . . . Parts Attached 29 | 1 5 2 21 Power 2 | . . . 2 Engine 2 | . . . 2 Core . | . . . . Reactor . | . . . . Propulsion 11 | . 4 . 7 Treads 5 | . 2 . 3 Leg 2 | . 1 . 1 Wheel 3 | . 1 . 2 Hover . | . . . . Flight 1 | . . . 1 Utility 8 | 1 1 . 6 Device 3 | 1 . . 2 Storage 2 | . 1 . 1 Processor . | . . . . Hackware . | . . . . Protection 3 | . . . 3 Artifact . | . . . . Weapon 8 | . . 2 6 Energy Gun 3 | . . . 3 Energy Cannon . | . . . . Ballistic Gun 5 | . . 2 3 Ballistic Cannon . | . . . . Launcher . | . . . . Special Weapon . | . . . . Impact Weapon . | . . . . Slashing Weapon . | . . . . Piercing Weapon . | . . . . Special Melee Weapon . | . . . . Unidentified Prototypes 2 | . . . 2 Parts Lost 18 | . . . 18 Power 2 | . . . 2 Propulsion 5 | . . . 5 Utility 5 | . . . 5 Weapon 6 | . . . 6 Highest Loss Streak 7 | . . . 7 To Critical Strikes 1 | . . . 1 Average Backups 9 | 6 6 5 10 Power 2 | 1 1 1 3 Propulsion 4 | 4 3 2 4 Utility . | . . 1 1 Weapon 1 | 1 1 1 2 Tool/Special . | . . . . Unused Backups 17 | . 2 2 13 Power 4 | . . . 4 Propulsion 8 | . 2 . 6 Utility . | . . . . Weapon 5 | . . 2 3 Tool/Special . | . . . . Average Slot Usage (%) 74 | . 100 100 66 Engine 10 | . 14 14 8 Treads 8 | . 11 14 7 Leg 2 | . 9 . 1 Wheel 8 | . 6 14 8 Device 8 | . 14 14 7 Storage 11 | . 14 14 11 Energy Gun 9 | . 14 2 9 Ballistic Gun 13 | . 14 25 11 Peak Build Rating 16 | 7 7 7 16 Average Rating 9 | 6 7 7 10 On Entrance 6 | 6 7 7 7 Avg Prop Armor Cover (%) 12 | . 13 13 12 Naked Turns . | . . . . Heaviest Build 56 | 14 49 49 56 Greatest Support 40 | 20 40 16 20 Greatest Overweight (x) 16 | . 3 3 16 Average Overweight (x) 2 | . 1 3 3 Largest Inventory Capacity 20 | 8 20 20 20 Average Capacity 19 | 8 17 20 19 Most Carried 18 | 6 7 6 18 Average Carried 9 | 6 6 5 10 Final Capacity 20 | 8 20 20 20 Final Carried 16 | 6 5 6 16 Class Distribution -------------------- 95% | Mutant 4% | Scavenger-Mutant Dominant Class ---------------- Mutant | -10/Materials Mutant | -10/Mines Mutant | -9/Materials Resources | -11 -10 -10 -9 ----------- Run | Yrd Mat Min Mat Matter Collected 709 | 213 101 77 318 Remotely . | . . . . Salvage Created 1074 | 27 156 115 776 Parts 79 | 3 13 9 54 Haulers Intercepted . | . . . . Recyclers Shooed 3 | . . 1 2 Parts Field Recycled . | . . . . Retrieved Matter . | . . . . Parts Self-Destructed . | . . . . Prevented . | . . . . Parts Restored . | . . . . Kills | -11 -10 -10 -9 ------- Run | Yrd Mat Min Mat Combat Hostiles Destroyed 33 | . 6 4 23 Guns 33 | . 6 4 23 Classes Destroyed 5 | 1 2 . 2 Tunneler 1 | 1 . . . Recycler 1 | . . . 1 Swarmer 18 | . 3 2 13 Grunt 9 | . 3 2 4 Sentry 6 | . . . 6 Best Kill Streak 5 | 1 3 2 5 Combat Bots Only 5 | . 3 2 5 Max Kills in Single Turn 2 | 1 1 1 2 Gunslinging 1 | . . . 1 Exploded . | . . . . Melee . | . . . . Uniques/NPCs Destroyed . | . . . . Combat | -11 -10 -10 -9 -------- Run | Yrd Mat Min Mat Hostile Shots Fired 317 | . 29 23 265 Missed 104 | . 10 8 86 Hits 213 | . 19 15 179 Projectile 213 | . 19 15 179 Critical Strikes 1 | . . . 1 Damage Taken 2282 | . 188 175 1919 Core 509 | . 58 39 412 Absorbed by Shields 93 | . . . 93 Core Remaining (%) 80 | 100 . 61 . Volleys Fired 121 | 1 17 16 87 Largest 2 | 2 2 2 2 Hottest 79 | 60 60 60 79 Shots Fired 225 | 2 34 32 157 Gun 225 | 2 34 32 157 Cannon . | . . . . Launcher . | . . . . Special . | . . . . Kinetic 132 | 1 17 29 85 Thermal 89 | 1 17 3 68 Explosive . | . . . . Electromagnetic 4 | . . . 4 Robot Hit Streak 13 | 2 9 13 13 Robot Miss Streak 3 | . 3 2 3 Penetration Max . | . . . . Secondary Targets 3 | . . . 3 Max Gunslinging Chain 1 | . . . 1 Shots Hit Robots 156 | 2 21 25 108 Core Hits 58 | 1 10 8 39 Critical Kills 1 | . . . 1 Critical Parts Destroyed 1 | . . . 1 Critical Strikes 4 | . . . 4 Burn 2 | . . . 2 Destroy 2 | . . . 2 Melee Attacks . | . . . . Impact . | . . . . Slashing . | . . . . Piercing . | . . . . Sneak Attacks . | . . . . Combat Hostiles . | . . . . Follow-up Attacks . | . . . . Damage Inflicted 1907 | 23 251 255 1378 Guns 1907 | 23 251 255 1378 Cannons . | . . . . Explosions . | . . . . Melee . | . . . . Ramming . | . . . . Kinetic 1033 | 13 164 245 611 Thermal 854 | 10 87 10 747 Explosive . | . . . . Electromagnetic 20 | . . . 20 Impact . | . . . . Slashing . | . . . . Piercing . | . . . . Highest Corruption 2 | . . . 2 Average Corruption 2 | . . . 2 Corruption Purged . | . . . . Corruption Blocked . | . . . . Effects 4 | . . . 4 Message Errors 1 | . . . 1 Matter Fused 1 | . . . 1 Energy Discharges 1 | . . . 1 Misfires 1 | . . . 1 Overload Shots . | . . . . Overflow Damage . | . . . . Projectiles . | . . . . Explosions . | . . . . Melee . | . . . . Knockbacks . | . . . . Impact . | . . . . Kinetic . | . . . . Secondary . | . . . . Self-Inflicted Damage . | . . . . Shots . | . . . . Rammed . | . . . . Targets Rammed . | . . . . Kicked . | . . . . Crushed . | . . . . Highest Temperature 217 | . 24 12 217 Average Temperature 58 | . 15 7 67 Received Heat Transfer 588 | . 60 84 444 Siege Activations . | . . . . Martial Activations . | . . . . Shielding Activations . | . . . . Robots Disrupted . | . . . . Combat Hostiles . | . . . . Robots Corrupted . | . . . . Combat Hostiles . | . . . . Parts Fried . | . . . . Impact Corruptions . | . . . . Robots Melted . | . . . . Combat Hostiles . | . . . . Parts Melted 5 | . . . 5 Heat Transferred 2063 | 25 200 25 1813 Parts Sabotaged . | . . . . Parts Stolen . | . . . . Parts Stripped . | . . . . Power Chain Reactions . | . . . . Alert | -11 -10 -10 -9 ------- Run | Yrd Mat Min Mat Maximum Alert Level . | . . . . Low Security (%) 100 | 100 100 100 100 Level 1 . | . . . . Level 2 . | . . . . Level 3 . | . . . . Level 4 . | . . . . Level 5 . | . . . . High Security . | . . . . Max Security . | . . . . Peak Influence 191 | 5 135 90 191 Initial 40 | . 3 40 27 Average 58 | 3 61 72 57 Influence Increases 990 | 5 195 100 690 Destroy 0b10 Robot/C 660 | . 120 80 460 Destroy 0b10 Robot/NC 10 | 5 . . 5 Destroy Leader 150 | . 20 20 110 Successful Hack 48 | . 10 . 38 Disable Machine 30 | . . . 30 Destroy Structure 2 | . . . 2 Lose Combat Pursuer 90 | . 45 . 45 Influence Decreases 815 | . 95 135 585 Entered New Map 110 | . 2 65 43 Time Decay 555 | . 93 70 392 Lost Part 150 | . . . 150 Squads Dispatched 4 | . . . 4 Investigation 2 | . . . 2 Extermination . | . . . . Reinforcement 2 | . . . 2 Assault . | . . . . Garrison . | . . . . Intercept . | . . . . Searches Triggered . | . . . . Construction Impeded . | . . . . Haulers Reinforced . | . . . . Active Scanning Responses . | . . . . Cargo Convoy Interrupts . | . . . . Stealth | -11 -10 -10 -9 --------- Run | Yrd Mat Min Mat Distress Signals 2 | . . . 2 Communications Jammed . | . . . . Distress Signals . | . . . . Times Spotted 55 | . 12 5 38 Peak Tracking Total 7 | . 5 3 7 Tactical Retreats 2 | . 1 . 1 Traps | -11 -10 -10 -9 ------- Run | Yrd Mat Min Mat Traps Triggered 1 | . . . 1 Indirectly . | . . . . Trap Hack Attempts . | . . . . Triggered . | . . . . Disarmed . | . . . . Reprogrammed . | . . . . Reused . | . . . . Traps Extracted . | . . . . Installed . | . . . . Triggered . | . . . . Machines | -11 -10 -10 -9 ---------- Run | Yrd Mat Min Mat Machines Disabled 2 | . . . 2 Max in Single Turn 1 | . . . 1 Machines Repaired . | . . . . Machines Dismantled . | . . . . Machines Sabotaged . | . . . . Overloaded Fab Kills . | . . . . Hacking | -11 -10 -10 -9 --------- Run | Yrd Mat Min Mat Machines Accessed 7 | . 1 . 6 Terminals 5 | . 1 . 4 Fabricators . | . . . . Repair Stations 1 | . . . 1 Recycling Units . | . . . . Scanalyzers 1 | . . . 1 Garrison Access . | . . . . Total Hacks 19 | . 4 . 15 Successful 11 | . 3 . 8 Failed 8 | . 1 . 7 Catastrophic . | . . . . Database Lockouts . | . . . . Manual 9 | . 3 . 6 Terminals 13 | . 4 . 9 Fabricators . | . . . . Repair Stations 3 | . . . 3 Recycling Units . | . . . . Scanalyzers 3 | . . . 3 Garrison Access . | . . . . Terminal Hacks 7 | . 3 . 4 Prototype ID Bank 1 | . 1 . . Terminal Index 2 | . 1 . 1 Alert Level 1 | . . . 1 Hauler Manifests 2 | . 1 . 1 Zone Layout 1 | . . . 1 Fabricator Hacks . | . . . . Repair Station Hacks . | . . . . Recycling Unit Hacks . | . . . . Scanalyzer 3 | . . . 3 Insert Component 1 | . . . 1 Analyze 1 | . . . 1 Retrieve Study 1 | . . . 1 Garrison Access Hacks . | . . . . Unauthorized Hacks 1 | . . . 1 Terminals 1 | . . . 1 Operators 1 | . . . 1 Fabricators . | . . . . Repair Stations . | . . . . Recycling Units . | . . . . Scanalyzers . | . . . . Garrison Access . | . . . . Data Cores Recovered . | . . . . Used . | . . . . Hacking Detections 6 | . . . 6 Full Trace Events 1 | . . . 1 Feedback Events . | . . . . Feedback Blocked . | . . . . Robot Schematics Acquired . | . . . . Robots Built . | . . . . Authchips . | . . . . Time . | . . . . Total Robot Build Rating . | . . . . Part Schematics Acquired 1 | . . . 1 Parts Built . | . . . . Authchips . | . . . . Time . | . . . . Total Part Build Rating . | . . . . Part Studies Acquired . | . . . . Parts Repaired . | . . . . Time . | . . . . Parts Recycled . | . . . . Recycled Matter . | . . . . Retrieved Matter . | . . . . Retrieved Components . | . . . . Parts Scanalyzed 1 | . . . 1 Part Schematics Acquired 1 | . . . 1 Parts Damaged . | . . . . Bothacking | -11 -10 -10 -9 ------------ Run | Yrd Mat Min Mat Used RIF Installer . | . . . . Robots Hacked . | . . . . Non-combat . | . . . . Combat . | . . . . Robot Hacks Applied . | . . . . Relay Couplers Released . | . . . . Fabnet Peak Effective % . | . . . . Robots Rewired . | . . . . Allies Hacked . | . . . . Hacks Repelled . | . . . . Allies | -11 -10 -10 -9 -------- Run | Yrd Mat Min Mat Total Allies . | . . . . Largest Group . | . . . . Highest-Rated Group . | . . . . Highest-Rated Ally . | . . . . Total Orders . | . . . . Ally Attacks . | . . . . Total Damage . | . . . . Kills . | . . . . Allies Corrupted . | . . . . Allies Melted . | . . . . Intel | -11 -10 -10 -9 ------- Run | Yrd Mat Min Mat Active Infowar (turns) 590 | 6 246 142 196 Seismic 590 | 6 246 142 196 Robot Analysis Total . | . . . . Derelict Logs Recovered . | . . . . Drone Launches . | . . . . Drone Recoveries . | . . . . Exploration | -11 -10 -10 -9 ------------- Run | Yrd Mat Min Mat Turns Passed 1853 | 16 246 142 1449 Spaces Moved 883 | 10 123 63 687 Core 20 | . . . 20 Treads 21 | . 10 . 11 Legs 90 | 10 45 . 35 Wheels 752 | . 68 63 621 Hover . | . . . . Flight . | . . . . Fastest Speed 120 | 120 120 145 130 Average Speed 161 | 120 149 145 166 Slowest Speed 850 | 120 260 145 850 Overloaded Moves . | . . . . Propulsion Burnouts . | . . . . Robots Hopped . | . . . . Potential Cave-ins . | . . . . Cave-ins Triggered . | . . . . Exploration Rate (%) 21 | 2 34 8 41 Regions Visited 3 Branch Regions 1 Pre-discovered Areas . | . . . . Known Exits Taken . | . . . . Unknown Exits Taken 3 | 1 1 1 . Scrap Searched . | . . . . Spaces Dug . | . . . . Terrain Destroyed . | . . . . Melee . | . . . . Projectile . | . . . . AOE . | . . . . Terrain Rammed . | . . . . Walls Destroyed . | . . . . Machines Disabled . | . . . . Actions | -11 -10 -10 -9 --------- Run | Yrd Mat Min Mat Total 1090 | 11 150 84 845 Wait 30 | . 4 2 24 Move 880 | 9 122 62 687 Hop . | . . . . Pick Up 18 | . . 1 17 Fast Attach 13 | 1 . . 12 Attach 8 | . . . 8 Detach 3 | . . . 3 Swap 11 | . 5 2 4 Drop 6 | . 2 1 3 Fire 121 | 1 17 16 87 Melee . | . . . . Ram . | . . . . Kick . | . . . . Crush . | . . . . Escape Stasis . | . . . . Rewire . | . . . . Trap . | . . . . Miscellaneous . | . . . . Route ------- -11/Scrapyard -10/Materials -10/Mines -9/Materials (discovered 1 exit: [*Mat]) History --------- Turn | Location | Event 1 | -11/Scrapyard | Discovered new exit (range 2) 17 | -11/Scrapyard | Entered Materials 224 | -10/Materials | Discovered new exit (range 12) 263 | -10/Materials | Entered Mines 304 | -10/Mines | Build established: Mutant 391 | -10/Mines | Discovered new exit (range 7) 405 | -10/Mines | Entered Materials 405 | -9/Materials | Evolved 2 slots: Utility x2 638 | -9/Materials | Lost 7 parts (1p2n1u3w) 848 | -9/Materials | Core integrity fell below 50% 1593 | -9/Materials | Discovered new exit (range 15) 1633 | -9/Materials | Core integrity fell below 20% 1708 | -9/Materials | Lost 6 parts (1p3n1u1w) 1854 | -9/Materials | Destroyed by Y-45 Defender with Heavy Assault Rifle Last Messages --------------- 01772_ Acquired Lgt. Treads. 01777_ G-34 Mercenary suffers critical hit (Destroy). 01777_ G-34 Mercenary destroyed. 01779_ Acquired 12 matter. 01789_ Acquired Com. Wheel. 01789_ R-06 Scavenger collects Sml. Storage Unit. 01792_ R-06 Scavenger collects Imp. Ion Engine. 01793_ Acquired 10 matter. 01801_ System corrupted: Energy discharge (-24). 01808_ M-13 Machinist repairs A-02 Transporter. 01832_ Connecting with Terminal... >>Alert(Check) Current Alert Level: Low Security 01832_ Connecting with Terminal... 01832_ K-01 Serf collects debris. 01845_ W-16 Scout sends out distress signal. 01853_ ALERT: Hostiles spotted, dispatching reinforcements to Terminal M002. Map ----- +----------------------------------------------------+ | ?????????????????????????????????????????????????? | | ?????????????????????????????????????o???????????? | | ?????????????????????????????????????????????????? | | ?????????????????????????#???????????????????????? | | ????????????????????????? ???????????????????????? | | ????????????????????????? ???????????????????????? | | ????????????????????????? ???????????????????????? | | ????????????????????????? ???????????????????????? | | ????????????????????????? ???????????????????????? | | ????????????????????????# #??????????????????????? | | ????????????????????????# #??????????????????????? | | ????????????????????????#w#??????????????????????? | | ????????????????????????#Y#??????????????????????? | | ????????????????????????# #??????????????????????? | | ????????????????????????# #??????????????????????? | | ????????????????????????# #??????????##??????????? | | ????????????????????????# #????????? #??????????? | | ????????????????????????# #???????? #??????????? | | ????????????????????????# #??#??""" #??????????? | | ????????????????????????# #??# """"" #??????????? | | ????????????????????????# #??# """"" #??????????? | | ????????????????????????# #??# """"" #??????????? | | ????????????????????????# #??# """ #??????????? | | ????????????????????????# #??? #??????????? | | ????????????????????##### #????? ????????????? | | ????????????????????# @########/#############?? | | ????????????????????# #?? | | ????????????????????# T < #?? | | ????????????????????# #?? | | ????????????????????# u############## ####### | | ????????????????????## ###########???# #? | | ?????????????????????# # #???# #?""" | | ?????????????????????# %# ""%% =#???#% # """ | | ?????????????????????# w+ """" %##### % # """ | | ?????????????????????# # "" * +% + | | ????????????????????# # " "" ##### # | | ????? #????????????# u# """ #???## # | | ????? #????????????# # #????# #?"" "" | | ????" #????????????# # #????# #?""S"" | | "???" #????????????# ###########????# #??""" | | """"" #????????????+ #??????????????# #??#### | | """"" #????????????# #??????????????# #?????? | | """"" ######???????# ???????????????# #?????? | | """"" #???????# ???????????????# #####?? | | ????????? ??????"????????# #?? | | ??????????? ????? ???????# #?? | | #???????????? ??????? ??????# !!#?? | | #???????????? ???????? ?????# !!#?? | | #????????????? ????????? ????# [[#?? | | #??????????######????????###+##?# [[#?? | +----------------------------------------------------+ Best States ------------- Heat Dissipation 38 Energy Generation 12 Energy Capacity 265 Matter Stores 300 Matter Capacity 300 Sight Range 16 Terrain Scan Density 10 Armor Coverage 150 Evasion (%) 55 Recoil Reduction 2 Item Schematics ----------------- Imp. Flight Unit | -9/Materials | Scanalyzed Robot Schematics ------------------ None Fabricated ------------ Nothing Repaired ---------- Nothing Studied --------- None Alien Tech Used ----------------- None Achievements -------------- None Challenges ------------ None Game ------ Seed RingSlugExoskeleton Manual? 0 Play Time 00:19:53 Cumulative 26.1 hours Start 2026.07.20 @ 21:50:37 End 2026.07.20 @ 22:09:12 Sessions 1 Manual Loads 0 Difficulty Rogue Special Mode None Game No. 33 Rogue 33 Adventurer 0 Explorer 0 Win Type - Total 0 Types 0/0/0/0/0/0/0/0/0/0 Lore% 21 Gallery% 20 Achievement% 20 Wizard Run 0 Options --------- Layout 2 ASCII 0 Keyboard 1 Movement Numpad Keybinds 1 Fullscreen 2 Font 24/Terminus Map View 50x44 Zoom Use 0% Tactical HUD 1 Map Filters NONE Filters LOW_CONTRAST(18,8,8)|SATURATION(90)|BRIGHTNESS(90) Steam 1 RUN: 79295230-d7a7-4e87-9031-34e77f701ecf